Cogmind - Beta 11.1 @@@ ROGUE MODE // 2022.12.04 @ 18:57:04 Player: Richard Blunt Result: Destroyed by D-53 Grenadier with Mini Grenade Launcher Performance ------------- Evolutions (0) 0 Regions Visited (4) 800 Robots Destroyed (31) 155 Value Destroyed (610) 610 Prototype IDs (25) 500 Alien Tech Used (0) 0 Bonus (-12) -12 TOTAL SCORE: 2053 Bonus ------- Aligned with FarCom 300 Friendly Fire -312 Cogmind --------- Core Integrity 0/250 Matter 248/300 Energy 235/265 System Corruption 0% Temperature Cool (0) Movement Core (1500) Ox29 Location -9/Mines Parts ------- > --- POWER (1) -------- Improved Ion Engine > --- PROPULSION (2) --- Light Treads > --- UTILITY (2) ------ Huge Storage Unit Structural Scanner > --- WEAPON (2) ------- (None) > --- INVENTORY (25) --- Light Ion Engine Light Treads Light Treads Light Treads Medium Storage Unit Large Storage Unit Large Matter Pod (0) Improved Terrain Scanner Latent Energy Streamer Grenade Launcher Rocket Launcher Maul Peak State ------------ > --- POWER ------------ Improved Ion Engine > --- PROPULSION ------- Wheel Compact Wheel > --- UTILITY ---------- Huge Storage Unit Light Armor Plating > --- WEAPON ----------- Light Cannon Rocket Launcher > --- INVENTORY -------- Light Ion Engine Light Treads Light Treads Light Treads Light Treads Compact Wheel Medium Storage Unit Large Storage Unit Large Matter Pod Structural Scanner Improved Terrain Scanner Light Armor Plating Latent Energy Streamer Assault Rifle Grenade Launcher Maul [Rating: 11] Favorites ----------- Power Light Ion Engine Engine Light Ion Engine Power Core Light Nuclear Core Propulsion Compact Wheel Treads Light Treads Wheel Compact Wheel Utility Large Storage Unit Device Structural Scanner Storage Large Storage Unit Protection Light Armor Plating Weapon Assault Rifle Ballistic Gun Assault Rifle Ballistic Cannon Light Cannon Launcher Rocket Launcher Impact Weapon Maul Special Melee Weapon Datajack Build | -11 -10 -10 -10 -9 ------- Run | Scr Mat Min Exi Min Slots Evolved . | . . . . . Power . | . . . . . Propulsion . | . . . . . Utility . | . . . . . Weapon . | . . . . . Parts Attached 32 | 7 9 8 2 6 Power 5 | 1 3 1 . . Engine 4 | 1 2 1 . . Core 1 | . 1 . . . Reactor . | . . . . . Propulsion 8 | 2 3 . 1 2 Treads 3 | 1 1 . . 1 Leg . | . . . . . Wheel 5 | 1 2 . 1 1 Hover . | . . . . . Flight . | . . . . . Utility 11 | 2 2 3 1 3 Device 3 | 1 1 . . 1 Storage 6 | 1 1 2 1 1 Processor . | . . . . . Hackware . | . . . . . Protection 2 | . . 1 . 1 Artifact . | . . . . . Weapon 8 | 2 1 4 . 1 Energy Gun . | . . . . . Energy Cannon . | . . . . . Ballistic Gun 4 | 2 . 1 . 1 Ballistic Cannon 1 | . . 1 . . Launcher 1 | . . 1 . . Special Weapon . | . . . . . Impact Weapon 1 | . 1 . . . Slashing Weapon . | . . . . . Piercing Weapon . | . . . . . Special Melee Weapon 1 | . . 1 . . Unidentified Prototypes . | . . . . . Parts Lost 10 | . 2 1 . 7 Power 1 | . 1 . . . Propulsion 4 | . 1 . . 3 Utility 2 | . . . . 2 Weapon 3 | . . 1 . 2 Highest Loss Streak 7 | . 2 1 . 7 To Critical Strikes . | . . . . . Average Slot Usage (%) 99 | . 99 99 100 90 Engine 11 | . 9 14 14 14 Core 2 | . 4 . . . Treads 12 | . 14 14 5 2 Wheel 15 | . 14 14 22 21 Device 8 | . 14 2 . . Storage 14 | . 14 14 14 16 Protection 5 | . . 11 14 11 Ballistic Gun 16 | . 26 9 . . Ballistic Cannon 5 | . . 10 14 11 Launcher 2 | . . . 14 11 Impact Weapon 1 | . 1 3 . . Naked Turns . | . . . . . Heaviest Build 97 | 13 30 37 97 97 Greatest Support 26 | 16 20 16 26 26 Greatest Overweight (x) 9 | . 1 2 3 9 Average Overweight (x) 1 | . . 1 2 4 Largest Inventory Capacity 25 | 8 15 25 25 25 Average Capacity 14 | 6 12 15 21 25 Most Carried 16 | 5 15 15 16 16 Average Carried 13 | 3 11 14 15 14 Final Capacity 25 | 8 15 15 25 25 Final Carried 16 | 5 15 15 16 12 Class Distribution -------------------- 100% | Mutant Dominant Class ---------------- Mutant | -10/Materials Mutant | -10/Mines Mutant | -10/Exiles Mutant | -9/Mines Resources | -11 -10 -10 -10 -9 ----------- Run | Scr Mat Min Exi Min Matter Collected 1021 | 285 646 89 . 1 Remotely . | . . . . . Salvage Created 1052 | 102 704 110 . 136 Parts 70 | 6 47 7 . 10 Haulers Intercepted 1 | . 1 . . . Recyclers Shooed 3 | . 3 . . . Parts Field Recycled . | . . . . . Retrieved Matter . | . . . . . Parts Self-Destructed . | . . . . . Prevented . | . . . . . Kills | -11 -10 -10 -10 -9 ------- Run | Scr Mat Min Exi Min Combat Hostiles Destroyed 33 | . 14 2 . 17 Guns 15 | . 14 1 . . Cannons 1 | . . 1 . . AOE 17 | . . . . 17 Classes Destroyed 9 | 2 4 1 . 2 Builder 2 | . 2 . . . Tunneler 2 | 2 . . . . Hauler 1 | . 1 . . . Recycler 4 | 1 2 . . 1 Swarmer 7 | . 3 . . 4 Grunt 12 | . 11 . . 1 Sentry 2 | . . 2 . . Assembled 13 | . . . . 13 Guerrilla 1 | . . . . 1 Best Kill Streak 18 | 3 3 2 . 18 Combat Bots Only 17 | . 3 2 . 17 Max Kills in Single Turn 4 | 1 1 1 . 4 Gunslinging . | . . . . . Exploded 3 | . . . . 3 Melee . | . . . . . Uniques/NPCs Destroyed . | . . . . . Combat | -11 -10 -10 -10 -9 -------- Run | Scr Mat Min Exi Min Damage Taken 1340 | . 576 88 . 676 Core 271 | . 131 14 . 126 Absorbed by Shields . | . . . . . Core Remaining (%) 100 | 100 . . . . Volleys Fired 88 | 4 67 3 . 14 Largest 2 | 2 2 2 . 1 Hottest 55 | 40 40 55 . 33 Shots Fired 162 | 8 134 6 . 14 Gun 146 | 8 134 3 . 1 Cannon 3 | . . 3 . . Launcher 13 | . . . . 13 Special . | . . . . . Kinetic 149 | 8 134 6 . 1 Thermal . | . . . . . Explosive 13 | . . . . 13 Electromagnetic . | . . . . . Robot Hit Streak 24 | 3 24 5 . 2 Robot Miss Streak 3 | 1 3 1 . 1 Penetration Max . | . . . . . Secondary Targets 1 | . 1 . . . Max Gunslinging Chain 1 | . 1 . . . Shots Hit Robots 105 | 5 89 7 . 4 Core Hits 75 | 3 31 3 . 38 Critical Kills . | . . . . . Critical Parts Destroyed 2 | . 2 . . . Critical Strikes 2 | . 2 . . . Destroy 1 | . 1 . . . Smash 1 | . 1 . . . Melee Attacks 7 | . 4 3 . . Impact 4 | . 4 . . . Slashing . | . . . . . Piercing . | . . . . . Sneak Attacks 5 | . 2 3 . . Combat Hostiles . | . . . . . Follow-up Attacks . | . . . . . Damage Inflicted 2745 | 70 1351 60 . 1264 Guns 1247 | 70 1153 24 . . Cannons 36 | . . 36 . . Explosions 1264 | . . . . 1264 Melee 198 | . 198 . . . Ramming . | . . . . . Kinetic 1283 | 70 1153 60 . . Thermal . | . . . . . Explosive 1264 | . . . . 1264 Electromagnetic . | . . . . . Impact 198 | . 198 . . . Slashing . | . . . . . Piercing . | . . . . . Highest Corruption . | . . . . . Average Corruption . | . . . . . Corruption Purged . | . . . . . Corruption Blocked . | . . . . . Overload Shots . | . . . . . Overflow Damage 112 | . 106 . . 6 Projectiles . | . . . . . Explosions 6 | . . . . 6 Melee 106 | . 106 . . . Knockbacks 1 | . 1 . . . Impact 1 | . 1 . . . Kinetic . | . . . . . Secondary . | . . . . . Self-Inflicted Damage 128 | . . . . 128 Shots 4 | . . . . 4 Rammed . | . . . . . Targets Rammed . | . . . . . Kicked . | . . . . . Crushed . | . . . . . Highest Temperature 9 | . 2 9 . . Average Temperature 2 | . 1 5 . . Received Heat Transfer 294 | . 276 18 . . Siege Activations . | . . . . . Robots Corrupted . | . . . . . Combat Hostiles . | . . . . . Parts Fried 1 | . 1 . . . Impact Corruptions 2 | . 2 . . . Robots Melted . | . . . . . Combat Hostiles . | . . . . . Parts Melted . | . . . . . Heat Transferred . | . . . . . Parts Sabotaged . | . . . . . Parts Stolen . | . . . . . Parts Stripped . | . . . . . Power Chain Reactions . | . . . . . Missiles Intercepted . | . . . . . Alert | -11 -10 -10 -10 -9 ------- Run | Scr Mat Min Exi Min Peak Influence 291 | 15 291 84 . 224 Initial 39 | . 9 39 . . Average 102 | 5 136 39 . 181 Maximum Alert Level 1 | . 1 . . 1 Low Security (%) 89 | 100 85 100 . 50 Level 1 10 | . 14 . . 50 Level 2 . | . . . . . Level 3 . | . . . . . Level 4 . | . . . . . Level 5 . | . . . . . High Security . | . . . . . Max Security . | . . . . . Squads Dispatched 7 | . 7 . . . Investigation 5 | . 5 . . . Extermination . | . . . . . Reinforcement 2 | . 2 . . . Assault . | . . . . . Garrison . | . . . . . Intercept . | . . . . . Searches Triggered . | . . . . . Construction Impeded . | . . . . . Haulers Reinforced . | . . . . . Active Scanning Responses . | . . . . . Cargo Convoy Interrupts . | . . . . . Stealth | -11 -10 -10 -10 -9 --------- Run | Scr Mat Min Exi Min Distress Signals 3 | . 3 . . . Communications Jammed . | . . . . . Distress Signals . | . . . . . Times Spotted 50 | . 26 2 . 22 Peak Tracking Total 20 | . 4 2 . 20 Tactical Retreats 1 | . 1 . . . Traps | -11 -10 -10 -10 -9 ------- Run | Scr Mat Min Exi Min Traps Triggered 3 | . 3 . . . Indirectly . | . . . . . Trap Hack Attempts . | . . . . . Triggered . | . . . . . Disarmed . | . . . . . Reprogrammed . | . . . . . Reused . | . . . . . Traps Extracted . | . . . . . Installed . | . . . . . Triggered . | . . . . . Machines | -11 -10 -10 -10 -9 ---------- Run | Scr Mat Min Exi Min Machines Disabled . | . . . . . Max in Single Turn . | . . . . . Machines Sabotaged . | . . . . . Garrisons Compromised . | . . . . . Overloaded Fab Kills . | . . . . . Hacking | -11 -10 -10 -10 -9 --------- Run | Scr Mat Min Exi Min Machines Accessed 7 | . 5 . 2 . Terminals 3 | . 3 . . . Fabricators . | . . . . . Repair Stations . | . . . . . Recycling Units 2 | . 2 . . . Scanalyzers . | . . . . . Garrison Access . | . . . . . Total Hacks 18 | . 16 . 2 . Successful 11 | . 9 . 2 . Failed 7 | . 7 . . . Catastrophic 1 | . 1 . . . Database Lockouts . | . . . . . Manual 12 | . 11 . 1 . Terminals 13 | . 13 . . . Fabricators . | . . . . . Repair Stations . | . . . . . Recycling Units 3 | . 3 . . . Scanalyzers . | . . . . . Garrison Access . | . . . . . Terminal Hacks 9 | . 7 . 2 . Record 1 | . . . 1 . Part Schematic 1 | . 1 . . . Robot Analysis 3 | . 3 . . . Prototype ID Bank 1 | . 1 . . . Alert Level 1 | . 1 . . . Zone Layout 1 | . 1 . . . EX-Prototype ID Bank 1 | . . . 1 . Fabricator Hacks . | . . . . . Repair Station Hacks . | . . . . . Recycling Unit Hacks . | . . . . . Scanalyzer . | . . . . . Garrison Access Hacks . | . . . . . Unauthorized Hacks 2 | . 2 . . . Terminals . | . . . . . Fabricators . | . . . . . Repair Stations . | . . . . . Recycling Units 2 | . 2 . . . Tunnel 2 | . 2 . . . Scanalyzers . | . . . . . Garrison Access . | . . . . . Data Cores Recovered . | . . . . . Used . | . . . . . Hacking Detections 4 | . 4 . . . Full Trace Events . | . . . . . Feedback Events . | . . . . . Feedback Blocked . | . . . . . Robot Schematics Acquired . | . . . . . Robots Built . | . . . . . Authchips . | . . . . . Time . | . . . . . Total Robot Build Rating . | . . . . . Part Schematics Acquired 1 | . 1 . . . Parts Built . | . . . . . Authchips . | . . . . . Time . | . . . . . Total Part Build Rating . | . . . . . Parts Repaired . | . . . . . Time . | . . . . . Parts Recycled . | . . . . . Recycled Matter . | . . . . . Retrieved Matter . | . . . . . Retrieved Components . | . . . . . Parts Scanalyzed . | . . . . . Part Schematics Acquired . | . . . . . Parts Damaged . | . . . . . Bothacking | -11 -10 -10 -10 -9 ------------ Run | Scr Mat Min Exi Min Used RIF Installer . | . . . . . Robots Hacked 2 | . . 2 . . Non-combat 1 | . . 1 . . Combat 1 | . . 1 . . Robot Hacks Applied 2 | . . 2 . . parse_system 2 | . . 2 . . Relay Couplers Released . | . . . . . Fabnet Peak Effective % . | . . . . . Robots Rewired . | . . . . . Allies Hacked . | . . . . . Hacks Repelled . | . . . . . Allies | -11 -10 -10 -10 -9 -------- Run | Scr Mat Min Exi Min Total Allies 3 | . . 3 . . Largest Group 3 | . . 3 3 2 Highest-Rated Group 40 | . . 40 40 32 Highest-Rated Ally 16 | . . 16 16 16 Total Orders . | . . . . . Ally Attacks 4 | . . . . 4 Total Damage 16 | . . . . 16 Kills . | . . . . . Allies Corrupted . | . . . . . Allies Melted . | . . . . . Intel | -11 -10 -10 -10 -9 ------- Run | Scr Mat Min Exi Min Robot Analysis Total 3 | . 3 . . . Derelict Logs Recovered . | . . . . . Drone Launches . | . . . . . Drone Recoveries . | . . . . . Exploration | -11 -10 -10 -10 -9 ------------- Run | Scr Mat Min Exi Min Turns Passed 2450 | 66 1277 665 390 52 Spaces Moved 1550 | 41 718 489 291 11 Core 3 | 3 . . . . Treads 142 | . 142 . . . Legs . | . . . . . Wheels 1405 | 38 576 489 291 11 Hover . | . . . . . Flight . | . . . . . Fastest Speed 50 | 50 100 115 130 135 Average Speed 130 | 96 134 125 132 157 Slowest Speed 240 | 100 240 130 135 215 Overloaded Moves . | . . . . . Propulsion Burnouts . | . . . . . Robots Hopped . | . . . . . Cave-ins Triggered . | . . . . . Exploration Rate (%) 50 | 3 97 69 69 12 Regions Visited 4 Branch Regions 3 Pre-discovered Areas 3 | . 2 . 1 . Known Exits Taken . | . . . . . Unknown Exits Taken 4 | 1 1 1 1 . Scrap Searched 2 | . . 2 . . Spaces Dug 22 | . 2 . . 20 Terrain Destroyed 90 | . 2 . . 88 Melee 2 | . 2 . . . Projectile . | . . . . . AOE 88 | . . . . 88 Terrain Rammed . | . . . . . Walls Destroyed . | . . . . . Machines Disabled . | . . . . . Actions | -11 -10 -10 -10 -9 --------- Run | Scr Mat Min Exi Min Total 1805 | 56 892 533 293 31 Wait 90 | . 72 18 . . Move 1546 | 40 717 488 290 11 Hop . | . . . . . Pick Up 26 | 5 14 6 1 . Fast Attach 11 | 7 3 1 . . Attach 7 | . 2 1 . 4 Detach 1 | . 1 . . . Swap 14 | . 4 6 2 2 Drop 15 | . 8 7 . . Fire 88 | 4 67 3 . 14 Melee 7 | . 4 3 . . Ram . | . . . . . Kick . | . . . . . Crush . | . . . . . Escape Stasis . | . . . . . Rewire . | . . . . . Trap . | . . . . . Miscellaneous . | . . . . . Route ------- -11/Scrapyard -10/Materials (discovered 4 exits: [*Mat x3] / [*Min]) -10/Mines (discovered 3 exits: [*Mat x2] / *Exi) -10/Exiles -9/Mines History --------- Turn | Location | Event 14 | -11/Scrapyard | Discovered new exit (range 16) 67 | -11/Scrapyard | Entered Materials 214 | -10/Materials | Discovered new exit (range 11) 311 | -10/Materials | Build established: Mutant 450 | -10/Materials | Discovered new exit (range 16) 848 | -10/Materials | Discovered new exit (range 9) 1056 | -10/Materials | Discovered new exit (range 9) 1102 | -10/Materials | Core integrity fell below 50% 1344 | -10/Materials | Entered Mines 1379 | -10/Mines | Discovered new exit (range 13) 1432 | -10/Mines | Discovered new exit (range 10) 1806 | -10/Mines | Assisted by bots powering up and referring to "LRC-V3" 1964 | -10/Mines | Received a Rocket Launcher from a helpful Derelict 1998 | -10/Mines | Deemed a non-threat by the Exiles lab entrance 2000 | -10/Mines | Discovered new exit (range 5) 2009 | -10/Mines | Entered Exiles 2009 | -10/Exiles | Accompanied by 3 allies 2043 | -10/Exiles | Met 8R-AWN 2065 | -10/Exiles | Met EX-HEX 2100 | -10/Exiles | Met EX-BIN 2126 | -10/Exiles | Aligned with FarCom system 2128 | -10/Exiles | Given EX-Vault access code 2158 | -10/Exiles | Opened EX-Vault 2173 | -10/Exiles | Found Latent Energy Streamer 2201 | -10/Exiles | Warned to stay clear of 0b10 Research branches 2238 | -10/Exiles | Met EX-DEC 2303 | -10/Exiles | Learned location of Zion (-7) 2387 | -10/Exiles | Discovered new exit (range 10) 2399 | -10/Exiles | Left Exiles lab with Latent Energy Streamer 2399 | -10/Exiles | Entered Mines 2399 | -9/Mines | Accompanied by 3 allies 2400 | -9/Mines | Assembled infested the area 2405 | -9/Mines | Assisted by a Guerilla fighting off Assembled 2451 | -9/Mines | Destroyed by D-53 Grenadier with Mini Grenade Launcher Last Messages --------------- 02426_ as-09426 destroyed. 02429_ The unstable cave ceiling collapses. 02429_ as-56844 destroyed. 02429_ as-15043 destroyed. 02430_ Wheel destroyed. 02433_ as-53467 destroyed. 02433_ as-44279 destroyed. 02435_ The unstable cave ceiling collapses. 02439_ as-54883 destroyed. 02439_ as-28702 destroyed. 02439_ Acquired 1 matter. 02440_ R-06 Scavenger collects Aluminum Leg. 02441_ The unstable cave ceiling collapses. 02441_ R-06 Scavenger destroyed. 02444_ The unstable cave ceiling collapses. 02447_ Lgt. Cannon destroyed. 02447_ Lgt. Armor Plating destroyed. 02449_ Com. Wheel destroyed. 02449_ Assault Rifle destroyed. 02450_ The unstable cave ceiling collapses. Map ----- +----------------------------------------------------+ | ?????????????????????????????????????????????????? | | ?????????????????????????????????????????????????? | | ?????????????????????????????????????????????????? | | ?????????????????????????????????????????????????? | | ?????????????????????????????????????????????????? | | ?????????????????????????????????????????????????? | | ?????????????????????????????????????????????????? | | ?????????????????????????????????????????????????? | | ?????????????????????????????????????????????????? | | ???????????????????????????????????? ????????????? | | ???????????????????????????????????? ????????????? | | ???????????????????????####????????? ????????????? | | ?????????????????????########??????? ????????????? | | ?????????????????????### ###??????? #???????????? | | ?????????????????????## ###?????? #???????????? | | ?????????????????????# ####????? #???????????? | | ?????????????????????# ####???# #???????????? | | ?????????????????????## ###???# ##??????????? | | ????????????#####???### ##???# "####???????? | | ????????????#####??#### ##### #???????? | | ???????????? ### ##### #???????? | | ??????????????##;; ## # # #?????? | | ??????????????#### = = % #?????? | | ???????????????## %!% #??????? | | ???????????????## d # ##?????? | | ???????????????## @ d #?????? | | ?????????? # #??????? | | ?????????? ?????? | | ?????????? #### #??????? | | ??????????###### # ## ???????? | | ?????????????###### ########### ### # ???????? | | ??????????????###### ################## ? ???????? | | ?????????????????### ???????????###??# ?????????? | | ??????????????????## ????????????????????????????? | | ?????????????????????????????????????????????????? | | ?????????????????????????????????????????????????? | | ?????????????????????????????????????????????????? | | ?????????????????????????????????????????????????? | | ?????????????????????????????????????????????????? | | ?????????????????????????????????????????????????? | | ?????????????????????????????????????????????????? | | ?????????????????????????????????????????????????? | | ?????????????????????????????????????????????????? | | ?????????????????????????????????????????????????? | | ?????????????????????????????????????????????????? | | ?????????????????????????????????????????????????? | | ?????????????????????????????????????????????????? | | ?????????????????????????????????????????????????? | | ?????????????????????????????????????????????????? | | ?????????????????????????????????????????????????? | +----------------------------------------------------+ Best States ------------- Heat Dissipation 25 Energy Generation 14 Energy Capacity 265 Matter Stores 300 Matter Capacity 450 Sight Range 16 Terrain Scan Density 10 Armor Coverage 150 Evasion (%) 40 Recoil Reduction 1 Item Schematics ----------------- Hcp. Storage Unit | -10/Materials | Hacked Robot Schematics ------------------ None Fabricated ------------ Nothing Alien Tech Used ----------------- None Achievements -------------- None Challenges ------------ None Game ------ Seed ArcArmoredAnalyzer Manual? 0 Play Time 00:36:09 Cumulative 99.4 hours Start 2022.12.04 @ 16:26:29 End 2022.12.04 @ 18:57:04 Sessions 2 Manual Loads 0 Difficulty Rogue Special Mode None Game No. 29 Rogue 29 Adventurer 0 Explorer 0 Win Type - Total 0 Types 0/0/0/0/0/0/0/0/0 Lore% 42 Gallery% 45 Achievement% 40 Wizard Run 0 Options --------- ASCII 0 Keyboard 1 Movement Vi Keybinds 0 Fullscreen 1 Font 18/SmallcapsGlow Map View 76x50 Tactical HUD 1 Map Filters NONE Filters NONE Steam 1 RUN: 4ed70c42-f59e-40db-a74a-557317e4a999